fUST/lending_fUST_20250522
["ID","MTS","AMOUNT","RATE_DAILY","PERIOD"]
[361967217,1747912252050,-430.0,0.00023013,2]
[361967219,1747912252059,-430.0,0.00023013,2]
[361967221,1747912252069,-430.0,0.00023013,2]
[361967223,1747912252078,-1096.23,0.00023013,2]
[361967225,1747912252087,-1018.48,0.00023013,2]
[361967227,1747912252097,-435.55,0.00023013,2]
[361967229,1747912252106,-1648.66,0.00023013,2]
[361967231,1747912252118,-1021.88,0.00023013,2]
[361967233,1747912252128,-430.0,0.00023013,2]
[361967235,1747912252137,-1350.17,0.00023013,2]
[361967237,1747912252146,-451.80103238,0.00023013,2]
[361967239,1747912252156,-430.0,0.00023013,2]
[361967241,1747912252165,-2404.76,0.00023013,2]
[361967243,1747912252176,-430.95,0.00023013,2]
[361967245,1747912252186,-508.65,0.00023013,2]
[361967248,1747912252196,-6434.33,0.00023013,2]
[361967250,1747912252206,-1008.79,0.00023013,2]
[361967252,1747912252215,-689.45,0.00023013,2]
[361967254,1747912252225,-430.0,0.00023013,2]
[361967256,1747912252234,-430.0,0.00023013,2]
[361967258,1747912252244,-1040.04,0.00023013,2]
[361967260,1747912252253,-430.0,0.00023013,2]
[361967262,1747912252263,-430.0,0.00023013,2]
[361967264,1747912252273,-430.0,0.00023013,2]
[361967266,1747912252283,-430.0,0.00023013,2]
[361967268,1747912252293,-430.0,0.00023013,2]
[361967270,1747912252303,-430.0,0.00023013,2]
[361967272,1747912252312,-2248.53,0.00023013,2]
[361967274,1747912252321,-430.0,0.00023013,2]
[361967276,1747912252331,-430.0,0.00023013,2]
[361967278,1747912252341,-512.61,0.00023013,2]
[361967280,1747912252350,-1024.02,0.00023013,2]
[361967282,1747912252360,-430.0,0.00023013,2]
[361967284,1747912252372,-4030.11,0.00023013,2]
[361967286,1747912252381,-486.95,0.00023013,2]
[361967288,1747912252391,-1882.09,0.00023013,2]
[361967290,1747912252400,-430.0,0.00023013,2]
[361967292,1747912252410,-430.0,0.00023013,2]
[361967294,1747912252420,-430.0,0.00023013,2]
[361967296,1747912252430,-430.0,0.00023013,2]
[361967298,1747912252439,-430.0,0.00023013,2]
[361967300,1747912252448,-430.0,0.00023013,2]
[361967302,1747912252458,-430.0,0.00023013,2]
[361967304,1747912252468,-749.31,0.00023013,2]
[361967306,1747912252478,-430.0,0.00023013,2]
[361967308,1747912252487,-430.0,0.00023013,2]
[361967310,1747912252497,-430.0,0.00023013,2]
[361967312,1747912252506,-2264.56,0.00023013,2]
[361967314,1747912252516,-838.25,0.00023013,2]
[361967316,1747912252525,-430.0,0.00023013,2]
[361967318,1747912252536,-641.36,0.00023013,2]
[361967320,1747912252547,-430.0,0.00023013,2]
[361967322,1747912252560,-724.96,0.00023013,2]
[361967324,1747912252569,-585.15,0.00023013,2]
[361967326,1747912252580,-430.0,0.00023013,2]
[361967328,1747912252590,-430.0,0.00023013,2]
[361967330,1747912252600,-1217.52,0.00023013,2]
[361967332,1747912252611,-824.97,0.00023013,2]
[361967334,1747912252623,-643.05,0.00023013,2]
[361967336,1747912252634,-430.0,0.00023013,2]
[361967339,1747912252644,-187.00497163,0.00023013,2]
[361967341,1747912252653,-751.68,0.00023013,2]
[361967343,1747912252663,-715.31,0.00023013,2]
[361967345,1747912252673,-788.43,0.00023013,2]
[361967347,1747912252682,-2187.86,0.00023013,2]
[361967349,1747912252692,-430.0,0.00023013,2]
[361967351,1747912252702,-1146.93,0.00023013,2]
[361967353,1747912252711,-2113.57,0.00023013,2]
[361967355,1747912252721,-539.16,0.00023013,2]
[361967357,1747912252731,-5518.59,0.00023013,2]
[361967359,1747912252741,-1761.88,0.00023013,2]
[361967361,1747912252750,-430.0,0.00023013,2]
[361967363,1747912252760,-430.0,0.00023013,2]
[361967365,1747912252770,-862.74,0.00023013,2]
[361967367,1747912252782,-694.53,0.00023013,2]
[361967369,1747912252792,-430.0,0.00023013,2]
[361967371,1747912252802,-649.56,0.00023013,2]
[361967373,1747912252812,-430.0,0.00023013,2]
[361967375,1747912252821,-723.21,0.00023013,2]
[361967377,1747912252831,-1179.45,0.00023013,2]
[361967379,1747912252841,-800.47,0.00023013,2]
[361967381,1747912252852,-430.0,0.00023013,2]
[361967383,1747912252862,-3199.28,0.00023013,2]
[361967385,1747912252874,-430.0,0.00023013,2]
[361967387,1747912252885,-970.82,0.00023013,2]
[361967390,1747912252895,-430.0,0.00023013,2]
[361967392,1747912252906,-1503.1389503,0.00023068,2]
[361967394,1747912252916,-500.0,0.00023068,2]
[361967396,1747912252927,-1500.0,0.00023068,2]
[361967398,1747912252936,-500.0,0.00023098,2]
[361967400,1747912252946,-5172.88299583,0.00023107,8]
[361967402,1747912252956,-151.0,0.000232,5]
[361967404,1747912252965,-5172.88299583,0.00023245,8]
[361967406,1747912252975,-296.47015038,0.00023256,2]
[361967408,1747912252984,-1500.0,0.00023268,2]
[361967410,1747912252995,-430.0,0.00023287,2]
[361967412,1747912253005,-430.0,0.00023287,2]
[361967414,1747912253014,-430.0,0.00023287,2]
[361967416,1747912253024,-430.0,0.00023287,2]
[361967418,1747912253034,-430.0,0.00023287,2]
[361967420,1747912253044,-205.65946404,0.00023287,2]
[361967422,1747912253053,-430.0,0.00023287,2]
[361967424,1747912253063,-430.0,0.00023287,2]
[361967426,1747912253073,-180.0,0.00023287,2]
[361967428,1747912253083,-430.0,0.00023287,2]
[361967430,1747912253094,-430.0,0.00023287,2]
[361967432,1747912253104,-762.73,0.00023287,2]
[361967434,1747912253114,-430.0,0.00023287,2]
[361967436,1747912253124,-338.81785682,0.00023287,2]
[361967438,1747912253134,-430.0,0.00023287,2]
[361967440,1747912253144,-430.0,0.00023287,2]
[361967442,1747912253154,-430.0,0.00023287,2]
[361967444,1747912253164,-430.0,0.00023287,2]
[361967446,1747912253176,-430.0,0.00023287,2]
[361967448,1747912253186,-1210.22,0.00023287,2]
[361967450,1747912253196,-430.0,0.00023287,2]
[361967452,1747912253206,-430.0,0.00023287,2]
[361967454,1747912253216,-207.65,0.00023287,2]
[361967456,1747912253226,-430.0,0.00023287,2]
[361967458,1747912253235,-430.0,0.00023287,2]
[361967468,1747912253328,-430.0,0.00023287,2]
[361967472,1747912253356,-430.0,0.00023287,2]
[361967473,1747912253366,-892.39,0.00023287,2]
[361967474,1747912253376,-430.0,0.00023287,2]
[361967476,1747912253386,-430.0,0.00023287,2]
[361967477,1747912253397,-430.0,0.00023287,2]
[361967479,1747912253407,-430.0,0.00023287,2]
[361967481,1747912253417,-530.0,0.00023287,2]
[361967484,1747912253428,-430.0,0.00023287,2]
[361967486,1747912253438,-430.0,0.00023287,2]
[361967488,1747912253448,-430.0,0.00023287,2]
[361967489,1747912253457,-1096.23,0.00023287,2]
[361967490,1747912253468,-1018.48,0.00023287,2]
[361967491,1747912253478,-3670.62,0.00023287,2]
[361967492,1747912253502,-1648.66,0.00023287,2]
[361967494,1747912253513,-1021.88,0.00023287,2]
[361967496,1747912253524,-430.0,0.00023287,2]
[361967498,1747912253535,-1350.17,0.00023287,2]
[361967500,1747912253550,-430.0,0.00023287,2]
[361967502,1747912253561,-2404.76,0.00023287,2]
[361967505,1747912253573,-430.95,0.00023287,2]
[361967507,1747912253583,-508.65,0.00023287,2]
[361967509,1747912253594,-6434.33,0.00023287,2]
[361967511,1747912253604,-1008.79,0.00023287,2]
[361967513,1747912253615,-689.45,0.00023287,2]
[361967515,1747912253626,-430.0,0.00023287,2]
[361967516,1747912253637,-430.0,0.00023287,2]
[361967517,1747912253647,-1040.04,0.00023287,2]
[361967518,1747912253658,-430.0,0.00023287,2]
[361967519,1747912253669,-430.0,0.00023287,2]
[361967520,1747912253680,-430.0,0.00023287,2]
[361967521,1747912253690,-430.0,0.00023287,2]
[361967522,1747912253701,-430.0,0.00023287,2]
[361967523,1747912253712,-430.0,0.00023287,2]
[361967524,1747912253723,-2248.53,0.00023287,2]
[361967525,1747912253735,-430.0,0.00023287,2]
[361967526,1747912253747,-430.0,0.00023287,2]
[361967527,1747912253758,-512.61,0.00023287,2]
[361967528,1747912253767,-1024.02,0.00023287,2]
[361967529,1747912253779,-430.0,0.00023287,2]
[361967530,1747912253790,-4030.11,0.00023287,2]
[361967531,1747912253801,-486.95,0.00023287,2]
[361967532,1747912253813,-1882.09,0.00023287,2]
[361967533,1747912253823,-430.0,0.00023287,2]
[361967534,1747912253833,-430.0,0.00023287,2]
[361967535,1747912253844,-430.0,0.00023287,2]
[361967536,1747912253855,-430.0,0.00023287,2]
[361967537,1747912253867,-430.0,0.00023287,2]
[361967538,1747912253877,-430.0,0.00023287,2]
[361967539,1747912253887,-430.0,0.00023287,2]
[361967540,1747912253897,-749.31,0.00023287,2]
[361967541,1747912253908,-430.0,0.00023287,2]
[361967542,1747912253918,-377.22469508,0.00023287,2]
[361967543,1747912253928,-430.0,0.00023287,2]
[361967544,1747912253938,-2264.56,0.00023287,2]
[361967545,1747912253950,-838.25,0.00023287,2]
[361967546,1747912253960,-430.0,0.00023287,2]
[361967547,1747912253971,-641.36,0.00023287,2]
[361967548,1747912253981,-430.0,0.00023287,2]
[361967549,1747912253991,-724.96,0.00023287,2]
[361967550,1747912254001,-585.15,0.00023287,2]
[361967551,1747912254011,-430.0,0.00023287,2]
[361967552,1747912254021,-430.0,0.00023287,2]
[361967553,1747912254032,-1217.52,0.00023287,2]
[361967554,1747912254042,-824.97,0.00023287,2]
[361967555,1747912254052,-643.05,0.00023287,2]
[361967556,1747912254062,-293.37508386,0.00023287,2]
[361967557,1747912254073,-751.68,0.00023287,2]
[361967558,1747912254083,-715.31,0.00023287,2]
[361967559,1747912254094,-788.43,0.00023287,2]
[361967560,1747912254108,-2187.86,0.00023287,2]
[361967561,1747912254120,-430.0,0.00023287,2]
[361967562,1747912254131,-1146.93,0.00023287,2]
[361967563,1747912254141,-2113.57,0.00023287,2]
[361967564,1747912254152,-539.16,0.00023287,2]
[361967565,1747912254162,-5518.59,0.00023287,2]
[361967566,1747912254173,-1761.88,0.00023287,2]
[361967567,1747912254183,-430.0,0.00023287,2]
[361967568,1747912254194,-430.0,0.00023287,2]
[361967569,1747912254203,-862.74,0.00023287,2]
[361967570,1747912254215,-694.53,0.00023287,2]
[361967571,1747912254225,-430.0,0.00023287,2]
[361967572,1747912254235,-649.56,0.00023287,2]
[361967573,1747912254246,-430.0,0.00023287,2]
[361967574,1747912254256,-723.21,0.00023287,2]
[361967575,1747912254267,-1179.45,0.00023287,2]
[361967576,1747912254277,-800.47,0.00023287,2]
[361967577,1747912254287,-430.0,0.00023287,2]
[361967578,1747912254298,-3199.28,0.00023287,2]
[361967579,1747912254309,-430.0,0.00023287,2]
[361967580,1747912254318,-970.82,0.00023287,2]
[361967581,1747912254328,-430.0,0.00023287,2]
[361967582,1747912254339,-250.0,0.00023334,2]
[361967583,1747912254348,-234.007874,0.00023374,2]
[361967584,1747912254360,-500.0,0.00023381,2]
[361967585,1747912254371,-5172.88299583,0.00023383,9]
[361967586,1747912254383,-404.0,0.00023398,2]
[361967587,1747912254393,-151.0,0.000234,8]
[361967588,1747912254404,-1217.660363,0.0002352,2]
[361967589,1747912254414,-5172.88299583,0.00023521,9]
[361967590,1747912254425,-12645.25887003,0.00023561,3]
[361967591,1747912254435,-160.0,0.00023561,3]
[361967592,1747912254446,-160.0,0.00023561,3]
[361967593,1747912254458,-430.0,0.00023561,2]
[361967594,1747912254469,-430.0,0.00023561,2]
[361967595,1747912254479,-259.94267179,0.00023561,2]
[361967596,1747912254490,-430.0,0.00023561,2]
[361967597,1747912254500,-430.0,0.00023561,2]
[361967598,1747912254511,-430.0,0.00023561,2]
[361967599,1747912254521,-268.48385685,0.00023561,2]
[361967600,1747912254531,-430.0,0.00023561,2]
[361967601,1747912254542,-430.0,0.00023561,2]
[361967602,1747912254556,-762.73,0.00023561,2]
[361967603,1747912254566,-430.0,0.00023561,2]
[361967604,1747912254576,-430.0,0.00023561,2]
[361967605,1747912254588,-430.0,0.00023561,2]
[361967606,1747912254598,-210.0,0.00023561,2]
[361967607,1747912254608,-430.0,0.00023561,2]
[361967608,1747912254618,-530.0,0.00023561,2]
[361967609,1747912254630,-1210.22,0.00023561,2]
[361967610,1747912254640,-430.0,0.00023561,2]
[361967611,1747912254651,-430.0,0.00023561,2]
[361967612,1747912254661,-430.0,0.00023561,2]
[361967613,1747912254671,-430.0,0.00023561,2]
[361967614,1747912254682,-430.0,0.00023561,2]
[361967615,1747912254693,-430.0,0.00023561,2]
[361967616,1747912254703,-892.39,0.00023561,2]
[361967617,1747912254714,-430.0,0.00023561,2]
[361967618,1747912254723,-430.0,0.00023561,2]
[361967619,1747912254733,-430.0,0.00023561,2]
[361967620,1747912254743,-430.0,0.00023561,2]
[361967621,1747912254753,-430.0,0.00023561,2]
[361967622,1747912254764,-430.0,0.00023561,2]
[361967623,1747912254774,-555.32,0.00023561,2]
[361967624,1747912254784,-1096.23,0.00023561,2]
[361967625,1747912254795,-1018.48,0.00023561,2]
[361967626,1747912254804,-151.0,0.00023561,7]
[361967627,1747912254815,-1648.66,0.00023561,2]
[361967628,1747912254825,-1021.88,0.00023561,2]
[361967629,1747912254835,-430.0,0.00023561,2]
[361967630,1747912254845,-1350.17,0.00023561,2]
[361967631,1747912254855,-160.0,0.00023561,2]
[361967632,1747912254866,-2404.76,0.00023561,2]
[361967633,1747912254876,-430.95,0.00023561,2]
[361967634,1747912254886,-508.65,0.00023561,2]
[361967635,1747912254896,-6434.33,0.00023561,2]
[361967636,1747912254906,-1008.79,0.00023561,2]
[361967637,1747912254915,-689.45,0.00023561,2]
[361967638,1747912254925,-430.0,0.00023561,2]
[361967639,1747912254935,-1726.774035,0.00023561,7]
[361967640,1747912254945,-430.0,0.00023561,2]
[361967641,1747912254956,-1726.774035,0.00023561,7]
[361967642,1747912254965,-1040.04,0.00023561,2]
[361967643,1747912254975,-430.0,0.00023561,2]
[361967644,1747912254985,-430.0,0.00023561,2]
[361967645,1747912254995,-430.0,0.00023561,2]
[361967646,1747912255005,-430.0,0.00023561,2]
[361967647,1747912255015,-430.0,0.00023561,2]
[361967648,1747912255024,-430.0,0.00023561,2]
[361967649,1747912255034,-2248.53,0.00023561,2]
[361967650,1747912255044,-430.0,0.00023561,2]
[361967651,1747912255055,-430.0,0.00023561,2]
[361967652,1747912255064,-512.61,0.00023561,2]
[361967653,1747912255074,-1024.02,0.00023561,2]
[361967654,1747912255084,-430.0,0.00023561,2]
[361967655,1747912255094,-4030.11,0.00023561,2]
[361967656,1747912255106,-486.95,0.00023561,2]
[361967657,1747912255116,-1882.09,0.00023561,2]
[361967658,1747912255256,-430.0,0.00023561,2]
[361967659,1747912255267,-430.0,0.00023561,2]
[361967660,1747912255278,-430.0,0.00023561,2]
[361967661,1747912255288,-430.0,0.00023561,2]
[361967662,1747912255298,-430.0,0.00023561,2]
[361967663,1747912255308,-430.0,0.00023561,2]
[361967664,1747912255319,-251.622697,0.00023561,7]
[361967665,1747912255329,-430.0,0.00023561,2]
[361967666,1747912255339,-749.31,0.00023561,2]
[361967667,1747912255348,-430.0,0.00023561,2]
[361967668,1747912255358,-251.622697,0.00023561,7]
[361967669,1747912255369,-430.0,0.00023561,2]
[361967670,1747912255379,-2264.56,0.00023561,2]
[361967671,1747912255389,-838.25,0.00023561,2]
[361967672,1747912255398,-430.0,0.00023561,2]
[361967673,1747912255408,-641.36,0.00023561,2]
[361967674,1747912255417,-430.0,0.00023561,2]
[361967675,1747912255427,-724.96,0.00023561,2]
[361967676,1747912255438,-585.15,0.00023561,2]
[361967677,1747912255447,-430.0,0.00023561,2]
[361967678,1747912255458,-151.0,0.00023561,7]
[361967679,1747912255467,-430.0,0.00023561,2]
[361967680,1747912255477,-151.0,0.00023561,7]
[361967681,1747912255487,-1217.52,0.00023561,2]
[361967682,1747912255499,-824.97,0.00023561,2]
[361967683,1747912255509,-153.30726,0.00023561,7]
[361967684,1747912255519,-643.05,0.00023561,2]
[361967685,1747912255529,-751.68,0.00023561,2]
[361967686,1747912255542,-715.31,0.00023561,2]
[361967687,1747912255551,-788.43,0.00023561,2]
[361967688,1747912255562,-2187.86,0.00023561,2]
[361967689,1747912255572,-430.0,0.00023561,2]
[361967690,1747912255582,-1146.93,0.00023561,2]
[361967691,1747912255592,-2113.57,0.00023561,2]
[361967692,1747912255603,-539.16,0.00023561,2]
[361967693,1747912255613,-5518.59,0.00023561,2]
[361967694,1747912255623,-151.0,0.00023561,7]
[361967695,1747912255634,-1761.88,0.00023561,2]
[361967696,1747912255644,-430.0,0.00023561,2]
[361967697,1747912255654,-151.0,0.00023561,7]
[361967698,1747912255663,-430.0,0.00023561,2]
[361967699,1747912255673,-862.74,0.00023561,2]
[361967700,1747912255683,-694.53,0.00023561,2]
[361967701,1747912255692,-430.0,0.00023561,2]
[361967702,1747912255703,-649.56,0.00023561,2]
[361967703,1747912255713,-430.0,0.00023561,2]
[361967704,1747912255724,-723.21,0.00023561,2]
[361967705,1747912255734,-1179.45,0.00023561,2]
[361967706,1747912255744,-800.47,0.00023561,2]
[361967707,1747912255754,-430.0,0.00023561,2]
[361967708,1747912255764,-3199.28,0.00023561,2]
[361967709,1747912255774,-430.0,0.00023561,2]
[361967710,1747912255784,-970.82,0.00023561,2]
[361967711,1747912255794,-430.0,0.00023561,2]
[361967712,1747912255803,-151.0,0.000236,10]
[361967713,1747912255813,-151.0,0.000236,9]
[361967714,1747912255823,-1009.28649543,0.00023616,2]
[361967715,1747912255833,-500.0,0.00023643,2]
[361967716,1747912255843,-500.0,0.00023643,2]
[361967717,1747912255853,-500.0,0.00023647,2]
[361967718,1747912255862,-500.0,0.00023647,2]
[361967719,1747912255873,-500.0,0.00023647,2]
[361967720,1747912255883,-500.0,0.00023647,2]
[361967721,1747912255893,-166.26780829,0.00023647,2]
[361967722,1747912255903,-500.0,0.00023647,2]
[361967723,1747912255913,-500.0,0.00023647,2]
[361967724,1747912255923,-500.0,0.00023647,2]
[361967725,1747912255933,-500.0,0.00023647,2]
[361967726,1747912255942,-500.0,0.00023647,2]
[361967727,1747912255951,-500.0,0.00023647,2]
[361967728,1747912255962,-500.0,0.00023647,2]
[361967729,1747912255971,-517.66648118,0.00023647,2]
[361967730,1747912255981,-500.0,0.00023647,2]
[361967731,1747912255991,-500.0,0.00023647,2]
[361967732,1747912256000,-500.0,0.00023647,2]
[361967733,1747912256010,-500.0,0.00023647,2]
[361967734,1747912256019,-500.0,0.00023647,2]
[361967735,1747912256030,-5172.88299583,0.00023659,9]
[361967736,1747912256039,-1912.71400485,0.0002366,2]
[361967737,1747912256048,-1000.0,0.00023735,2]
[361967738,1747912256059,-296.47015038,0.00023735,2]
[361967739,1747912256069,-5172.88299583,0.00023797,9]
[361967740,1747912256079,-151.0,0.000238,8]
[361967741,1747912256089,-151.0,0.000238,6]
[361967742,1747912256098,-2000.0,0.00023816,2]
[361967743,1747912256108,-430.0,0.00023835,2]
[361967744,1747912256118,-430.0,0.00023835,2]
[361967745,1747912256130,-430.0,0.00023835,2]
[361967746,1747912256140,-361.79338534,0.00023835,2]
[361967747,1747912256149,-430.0,0.00023835,2]
[361967748,1747912256159,-430.0,0.00023835,2]
[361967749,1747912256169,-430.0,0.00023835,2]
[361967750,1747912256179,-762.73,0.00023835,2]
[361967751,1747912256188,-430.0,0.00023835,2]
[361967752,1747912256198,-430.0,0.00023835,2]
[361967753,1747912256208,-430.0,0.00023835,2]
[361967754,1747912256218,-430.0,0.00023835,2]
[361967755,1747912256228,-1210.22,0.00023835,2]
[361967756,1747912256237,-430.0,0.00023835,2]
[361967757,1747912256247,-430.0,0.00023835,2]
[361967758,1747912256257,-430.0,0.00023835,2]
[361967759,1747912256267,-430.0,0.00023835,2]
[361967760,1747912256277,-430.0,0.00023835,2]
[361967761,1747912256287,-430.0,0.00023835,2]
[361967762,1747912256297,-892.39,0.00023835,2]
[361967763,1747912256307,-430.0,0.00023835,2]
[361967764,1747912256317,-430.0,0.00023835,2]
[361967765,1747912256327,-430.0,0.00023835,2]
[361967766,1747912256337,-430.0,0.00023835,2]
[361967767,1747912256347,-430.0,0.00023835,2]
[361967768,1747912256357,-430.0,0.00023835,2]
[361967769,1747912256367,-1096.23,0.00023835,2]
[361967770,1747912256379,-1018.48,0.00023835,2]
[361967771,1747912256388,-1648.66,0.00023835,2]
[361967772,1747912256399,-1021.88,0.00023835,2]
[361967773,1747912256409,-430.0,0.00023835,2]
[361967774,1747912256419,-1350.17,0.00023835,2]
[361967775,1747912256430,-2404.76,0.00023835,2]
[361967776,1747912256441,-430.95,0.00023835,2]
[361967777,1747912256451,-508.65,0.00023835,2]
[361967778,1747912256461,-1221.008064,0.00023835,7]
[361967779,1747912256470,-6434.33,0.00023835,2]
[361967780,1747912256481,-1221.008064,0.00023835,7]
[361967781,1747912256490,-1008.79,0.00023835,2]
[361967782,1747912256500,-689.45,0.00023835,2]
[361967783,1747912256510,-430.0,0.00023835,2]
[361967784,1747912256520,-430.0,0.00023835,2]
[361967785,1747912256530,-1040.04,0.00023835,2]
[361967786,1747912256540,-430.0,0.00023835,2]
[361967787,1747912256553,-430.0,0.00023835,2]
[361967788,1747912256563,-430.0,0.00023835,2]
[361967789,1747912256572,-405.925276,0.00023835,7]
[361967790,1747912256582,-405.925276,0.00023835,7]
[361967791,1747912256592,-430.0,0.00023835,2]
[361967792,1747912256603,-430.0,0.00023835,2]
[361967793,1747912256613,-430.0,0.00023835,2]
[361967794,1747912256624,-2248.53,0.00023835,2]
[361967795,1747912256634,-515.52022401,0.00023835,2]
[361967796,1747912256644,-430.0,0.00023835,2]
[361967797,1747912256654,-512.61,0.00023835,2]
[361967798,1747912256664,-1024.02,0.00023835,2]
[361967799,1747912256674,-388.39925975,0.00023835,2]
[361967800,1747912256685,-4030.11,0.00023835,2]
[361967801,1747912256694,-486.95,0.00023835,2]
[361967802,1747912256705,-1882.09,0.00023835,2]
[361967803,1747912256716,-430.0,0.00023835,2]
[361967804,1747912256726,-430.0,0.00023835,2]
[361967805,1747912256736,-430.0,0.00023835,2]
[361967806,1747912256746,-430.0,0.00023835,2]
[361967807,1747912256756,-430.0,0.00023835,2]
[361967808,1747912256766,-430.0,0.00023835,2]
[361967809,1747912256775,-430.0,0.00023835,2]
[361967810,1747912256786,-749.31,0.00023835,2]
[361967811,1747912256902,-430.0,0.00023835,2]
[361967812,1747912256914,-430.0,0.00023835,2]
[361967813,1747912256924,-2264.56,0.00023835,2]
[361967814,1747912256934,-838.25,0.00023835,2]
[361967815,1747912256944,-430.0,0.00023835,2]
[361967816,1747912256954,-641.36,0.00023835,2]
[361967817,1747912256964,-430.0,0.00023835,2]
[361967818,1747912256974,-724.96,0.00023835,2]
[361967819,1747912256983,-585.15,0.00023835,2]
[361967820,1747912256993,-430.0,0.00023835,2]
[361967821,1747912257002,-430.0,0.00023835,2]
[361967822,1747912257012,-1217.52,0.00023835,2]
[361967823,1747912257022,-824.97,0.00023835,2]
[361967824,1747912257031,-643.05,0.00023835,2]
[361967825,1747912257040,-751.68,0.00023835,2]
[361967826,1747912257050,-715.31,0.00023835,2]
[361967827,1747912257059,-788.43,0.00023835,2]
[361967828,1747912257069,-2187.86,0.00023835,2]
[361967829,1747912257080,-430.0,0.00023835,2]
[361967830,1747912257090,-1146.93,0.00023835,2]
[361967831,1747912257100,-2113.57,0.00023835,2]
[361967832,1747912257110,-539.16,0.00023835,2]
[361967833,1747912257120,-5518.59,0.00023835,2]
[361967834,1747912257130,-1761.88,0.00023835,2]
[361967835,1747912257140,-430.0,0.00023835,2]
[361967836,1747912257153,-234.744614,0.00023835,7]
[361967837,1747912257163,-234.744614,0.00023835,7]
[361967838,1747912257173,-430.0,0.00023835,2]
[361967839,1747912257182,-862.74,0.00023835,2]
[361967840,1747912257192,-694.53,0.00023835,2]
[361967841,1747912257202,-430.0,0.00023835,2]
[361967842,1747912257212,-649.56,0.00023835,2]
[361967843,1747912257221,-430.0,0.00023835,2]
[361967844,1747912257231,-723.21,0.00023835,2]
[361967845,1747912257240,-1179.45,0.00023835,2]
[361967846,1747912257250,-800.47,0.00023835,2]
[361967847,1747912257259,-430.0,0.00023835,2]
[361967848,1747912257269,-3199.28,0.00023835,2]
[361967849,1747912257278,-430.0,0.00023835,2]
[361967850,1747912257289,-970.82,0.00023835,2]
[361967851,1747912257299,-430.0,0.00023835,2]
[361967852,1747912257309,-494.75882856,0.000239,2]
[361967853,1747912257320,-636.0,0.000239,2]
[361967854,1747912257330,-2294.36626158,0.000239,2]
[361967855,1747912257341,-7567.0006457,0.000239,2]
[361967856,1747912257351,-246.372,0.00023924,2]
[361967857,1747912257361,-235.232,0.00023924,2]
[361967858,1747912257371,-250.0,0.00023924,2]
[361967859,1747912257381,-151.658,0.00023924,2]
[361967860,1747912257390,-250.0,0.00023924,2]
[361967861,1747912257400,-238.354,0.00023924,2]
[361967862,1747912257409,-257.376,0.00023924,2]
[361967863,1747912257419,-242.0,0.00023924,2]
[361967864,1747912257429,-960.0,0.00023924,2]
[361967865,1747912257439,-707.0,0.00023924,2]
[361967866,1747912257449,-2236.0,0.00023924,2]
[361967867,1747912257459,-1001.30246852,0.00023929,2]
[361967868,1747912257469,-5172.88299583,0.00023934,10]
[361967869,1747912257478,-215.0738,0.00023957,2]